[Event "Titled Tuesday Blitz September 27 Early 2022"]
[White "Levitan, Caleb Levi"]
[Black "Gu, Xiaobing"]
[WhiteFideId "14332620"]
[BlackFideId "8602611"]
[WhiteElo "1811"]
[BlackElo "2174"]
[Result "0-1"]
[Round "06"]
[TimeControl "180+1"]
[Date "2022.09.27"]
[WhiteClock "0:00:02"]
[BlackClock "0:01:02"]

1. e4 {[%clk 0:02:57]}  c5 {[%clk 0:02:59]} 2. Nf3 {[%clk 0:02:58]}  d6 {[%clk 0:02:59]} 3. d4 {[%clk 0:02:58]}  cxd4 {[%clk 0:02:59]} 4. Nxd4 {[%clk 0:02:58]}  Nf6 {[%clk 0:02:59]} 5. Nc3 {[%clk 0:02:58]}  a6 {[%clk 0:02:59]} 6. Bc4 {[%clk 0:02:58]}  e6 {[%clk 0:02:58]} 7. Bb3 {[%clk 0:02:58]}  Nbd7 {[%clk 0:02:58]} 8. Bg5 {[%clk 0:02:53]}  Qa5 {[%clk 0:02:57]} 9. f4 {[%clk 0:02:48]}  Be7 {[%clk 0:02:53]} 10. Qd2 {[%clk 0:02:36]}  Nc5 {[%clk 0:02:49]} 11. Bxf6 {[%clk 0:02:33]}  Bxf6 {[%clk 0:02:46]} 12. O-O-O {[%clk 0:02:28]}  O-O {[%clk 0:02:39]} 13. Kb1 {[%clk 0:02:27]}  b5 {[%clk 0:02:31]} 14. Qe3 {[%clk 0:02:14]}  Qc7 {[%clk 0:02:18]} 15. g4 {[%clk 0:02:06]}  Bb7 {[%clk 0:02:17]} 16. g5 {[%clk 0:02:03]}  Be7 {[%clk 0:02:14]} 17. f5 {[%clk 0:01:21]}  b4 {[%clk 0:02:09]} 18. Nce2 {[%clk 0:00:57]}  Nxb3 {[%clk 0:01:49]} 19. axb3 {[%clk 0:00:52]}  e5 {[%clk 0:01:49]} 20. Nf3 {[%clk 0:00:50]}  Rfc8 {[%clk 0:01:49]} 21. Rd2 {[%clk 0:00:45]}  a5 {[%clk 0:01:48]} 22. f6 {[%clk 0:00:43]}  Bf8 {[%clk 0:01:47]} 23. fxg7 {[%clk 0:00:37]}  Bxg7 {[%clk 0:01:47]} 24. Nh4 {[%clk 0:00:20]}  a4 {[%clk 0:01:43]} 25. Nc1 {[%clk 0:00:20]}  axb3 {[%clk 0:01:41]} 26. Nxb3 {[%clk 0:00:20]}  Qc6 {[%clk 0:01:26]} 27. Re1 {[%clk 0:00:19]}  Qa6 {[%clk 0:01:18]} 28. c3 {[%clk 0:00:07]}  Qa2+ {[%clk 0:01:13]} 29. Kc2 {[%clk 0:00:07]}  Ra3 {[%clk 0:01:13]} 30. c4 {[%clk 0:00:04]}  Rxc4+ {[%clk 0:01:11]} 31. Kd1 {[%clk 0:00:04]}  Rxb3 {[%clk 0:01:08]} 32. Qb6 {[%clk 0:00:03]}  Qb1+ {[%clk 0:01:06]} 33. Ke2 {[%clk 0:00:03]}  Rxe4+ {[%clk 0:01:06]} 34. Kf1 {[%clk 0:00:03]}  Qxe1+ {[%clk 0:01:05]} 35. Kg2 {[%clk 0:00:04]}  Qxd2+ {[%clk 0:01:02]} 36. Qf2 {[%clk 0:00:03]}  Re2+ {[%clk 0:01:02]} 37. Nf3 {[%clk 0:00:02]}  Rxf2+ {[%clk 0:01:02]} 0-1


[Site "https://www.chess.com"]

[Event "Titled Tuesday Blitz September 27 Early 2022"]
[White "Ljukin, Sergei"]
[Black "Gilmanov, Mansur"]
[WhiteFideId "14102200"]
[BlackFideId "4166868"]
[WhiteElo "2312"]
[BlackElo "2377"]
[Result "0-1"]
[Round "06"]
[TimeControl "180+1"]
[Date "2022.09.27"]
[WhiteClock "0:00:02"]
[BlackClock "0:00:05"]

1. e4 {[%clk 0:02:55]}  e5 {[%clk 0:02:58]} 2. Nf3 {[%clk 0:02:55]}  Nc6 {[%clk 0:02:57]} 3. Bb5 {[%clk 0:02:56]}  Nge7 {[%clk 0:02:56]} 4. d4 {[%clk 0:02:55]}  a6 {[%clk 0:02:53]} 5. Ba4 {[%clk 0:02:51]}  exd4 {[%clk 0:02:47]} 6. Nxd4 {[%clk 0:02:51]}  g6 {[%clk 0:02:45]} 7. Nxc6 {[%clk 0:02:51]}  dxc6 {[%clk 0:02:32]} 8. Qf3 {[%clk 0:02:24]}  Bg7 {[%clk 0:02:27]} 9. O-O {[%clk 0:02:13]}  O-O {[%clk 0:02:25]} 10. Rd1 {[%clk 0:02:13]}  Qe8 {[%clk 0:02:23]} 11. Bf4 {[%clk 0:02:12]}  Bxb2 {[%clk 0:02:15]} 12. Bxc7 {[%clk 0:02:08]}  Bxa1 {[%clk 0:02:11]} 13. Rd8 {[%clk 0:02:07]}  Qxd8 {[%clk 0:02:09]} 14. Bxd8 {[%clk 0:02:07]}  Rxd8 {[%clk 0:02:10]} 15. c3 {[%clk 0:02:07]}  Be6 {[%clk 0:01:55]} 16. h4 {[%clk 0:02:02]}  h5 {[%clk 0:01:39]} 17. Na3 {[%clk 0:01:37]}  c5 {[%clk 0:01:06]} 18. Bb3 {[%clk 0:01:29]}  Bxb3 {[%clk 0:00:51]} 19. axb3 {[%clk 0:01:29]}  Bb2 {[%clk 0:00:51]} 20. Nc4 {[%clk 0:01:27]}  Bc1 {[%clk 0:00:50]} 21. Qf6 {[%clk 0:01:18]}  Nc6 {[%clk 0:00:45]} 22. Nd6 {[%clk 0:01:03]}  Rd7 {[%clk 0:00:45]} 23. e5 {[%clk 0:00:59]}  Rf8 {[%clk 0:00:26]} 24. Ne4 {[%clk 0:00:47]}  Nd8 {[%clk 0:00:20]} 25. f4 {[%clk 0:00:42]}  Ne6 {[%clk 0:00:17]} 26. f5 {[%clk 0:00:40]}  Rd1+ {[%clk 0:00:17]} 27. Kh2 {[%clk 0:00:39]}  Rf1 {[%clk 0:00:17]} 28. Qe7 {[%clk 0:00:19]}  Rxf5 {[%clk 0:00:09]} 29. Nf6+ {[%clk 0:00:14]}  Kg7 {[%clk 0:00:10]} 30. Qxb7 {[%clk 0:00:12]}  Bf4+ {[%clk 0:00:08]} 31. g3 {[%clk 0:00:09]}  Bxe5 {[%clk 0:00:08]} 32. Nd7 {[%clk 0:00:09]}  Rd8 {[%clk 0:00:07]} 33. Qc6 {[%clk 0:00:05]}  c4 {[%clk 0:00:04]} 34. bxc4 {[%clk 0:00:05]}  Rf2+ {[%clk 0:00:03]} 35. Kg1 {[%clk 0:00:04]}  Rf5 {[%clk 0:00:04]} 36. c5 {[%clk 0:00:04]}  Bxc3 {[%clk 0:00:03]} 37. Qb7 {[%clk 0:00:04]}  Nxc5 {[%clk 0:00:03]} 38. Nxc5 {[%clk 0:00:03]}  Rxc5 {[%clk 0:00:04]} 39. Qb6 {[%clk 0:00:03]}  Bd4+ {[%clk 0:00:05]} 40. Kg2 {[%clk 0:00:02]}  Rc2+ {[%clk 0:00:05]} 0-1


[Site "https://www.chess.com"]

[Event "Titled Tuesday Blitz September 27 Early 2022"]
[White "Maksimenko, Viktor"]
[Black "Gorshtein, Ido"]
[WhiteFideId "13710478"]
[BlackFideId "2815532"]
[WhiteElo "2269"]
[BlackElo "2411"]
[Result "0-1"]
[Round "06"]
[TimeControl "180+1"]
[Date "2022.09.27"]
[WhiteClock "0:01:17"]
[BlackClock "0:01:08"]

1. d4 {[%clk 0:03:00]}  Nc6 {[%clk 0:03:00]} 2. c4 {[%clk 0:02:57]}  e5 {[%clk 0:03:00]} 3. d5 {[%clk 0:02:56]}  Nce7 {[%clk 0:02:57]} 4. h4 {[%clk 0:02:55]}  Nf6 {[%clk 0:02:57]} 5. h5 {[%clk 0:02:54]}  h6 {[%clk 0:02:50]} 6. Nc3 {[%clk 0:02:51]}  Nf5 {[%clk 0:02:49]} 7. e3 {[%clk 0:02:45]}  Bb4 {[%clk 0:02:45]} 8. Bd2 {[%clk 0:02:44]}  O-O {[%clk 0:02:41]} 9. Qc2 {[%clk 0:02:42]}  d6 {[%clk 0:02:39]} 10. Bd3 {[%clk 0:02:40]}  Ne7 {[%clk 0:02:31]} 11. Nge2 {[%clk 0:02:37]}  c6 {[%clk 0:02:30]} 12. e4 {[%clk 0:02:36]}  b5 {[%clk 0:02:24]} 13. b3 {[%clk 0:02:26]}  bxc4 {[%clk 0:02:19]} 14. bxc4 {[%clk 0:02:25]}  Ba6 {[%clk 0:02:17]} 15. Rb1 {[%clk 0:02:01]}  Rb8 {[%clk 0:02:04]} 16. Ng3 {[%clk 0:01:56]}  Qa5 {[%clk 0:02:00]} 17. O-O {[%clk 0:01:49]}  Rfc8 {[%clk 0:01:58]} 18. Rb3 {[%clk 0:01:36]}  cxd5 {[%clk 0:01:56]} 19. cxd5 {[%clk 0:01:37]}  Bxc3 {[%clk 0:01:42]} 20. Bxc3 {[%clk 0:01:33]}  Bxd3 {[%clk 0:01:26]} 21. Qxd3 {[%clk 0:01:34]}  Rxb3 {[%clk 0:01:25]} 22. axb3 {[%clk 0:01:30]}  Rxc3 {[%clk 0:01:21]} 23. Qd2 {[%clk 0:01:28]}  Qc5 {[%clk 0:01:11]} 24. Qd1 {[%clk 0:01:16]}  Rxg3 {[%clk 0:01:09]} 25. b4 {[%clk 0:01:17]}  Qb6 {[%clk 0:01:08]} 0-1


[Site "https://www.chess.com"]

[Event "Titled Tuesday Blitz September 27 Early 2022"]
[White "Malek, Jan"]
[Black "Vagman, Roy"]
[WhiteFideId "21864080"]
[BlackFideId "2828995"]
[WhiteElo "2172"]
[BlackElo "1945"]
[Result "1-0"]
[Round "06"]
[TimeControl "180+1"]
[Date "2022.09.27"]
[WhiteClock "0:01:03"]
[BlackClock "0:00:16"]

1. c4 {[%clk 0:03:00]}  c5 {[%clk 0:02:52]} 2. Nf3 {[%clk 0:02:59]}  Nc6 {[%clk 0:02:51]} 3. g3 {[%clk 0:03:00]}  g6 {[%clk 0:02:49]} 4. Bg2 {[%clk 0:03:00]}  Bg7 {[%clk 0:02:48]} 5. O-O {[%clk 0:03:01]}  d6 {[%clk 0:02:47]} 6. Nc3 {[%clk 0:02:59]}  Nf6 {[%clk 0:02:47]} 7. d4 {[%clk 0:02:58]}  cxd4 {[%clk 0:02:46]} 8. Nxd4 {[%clk 0:02:59]}  Bd7 {[%clk 0:02:47]} 9. b3 {[%clk 0:02:49]}  Nh5 {[%clk 0:02:41]} 10. Be3 {[%clk 0:02:47]}  O-O {[%clk 0:02:31]} 11. Qd2 {[%clk 0:02:46]}  a6 {[%clk 0:02:24]} 12. Rac1 {[%clk 0:02:40]}  Qa5 {[%clk 0:02:22]} 13. Rfd1 {[%clk 0:02:36]}  Kh8 {[%clk 0:02:18]} 14. Nd5 {[%clk 0:02:23]}  Qd8 {[%clk 0:02:06]} 15. c5 {[%clk 0:01:49]}  dxc5 {[%clk 0:01:57]} 16. Nxc6 {[%clk 0:01:47]}  Bxc6 {[%clk 0:01:55]} 17. Bxc5 {[%clk 0:01:48]}  e6 {[%clk 0:01:13]} 18. Bxf8 {[%clk 0:01:40]}  Bxf8 {[%clk 0:01:14]} 19. Nf4 {[%clk 0:01:26]}  Qxd2 {[%clk 0:01:06]} 20. Rxd2 {[%clk 0:01:27]}  Bxg2 {[%clk 0:00:46]} 21. Kxg2 {[%clk 0:01:27]}  Nxf4+ {[%clk 0:00:37]} 22. gxf4 {[%clk 0:01:28]}  Kg7 {[%clk 0:00:37]} 23. Rd7 {[%clk 0:01:24]}  Kg8 {[%clk 0:00:31]} 24. Rcc7 {[%clk 0:01:19]}  f6 {[%clk 0:00:30]} 25. Rxb7 {[%clk 0:01:18]}  h5 {[%clk 0:00:28]} 26. Kf3 {[%clk 0:01:16]}  Rc8 {[%clk 0:00:27]} 27. Rbc7 {[%clk 0:01:17]}  Rb8 {[%clk 0:00:27]} 28. Rc6 {[%clk 0:01:14]}  Re8 {[%clk 0:00:25]} 29. Rxa6 {[%clk 0:01:14]}  g5 {[%clk 0:00:25]} 30. fxg5 {[%clk 0:01:13]}  fxg5 {[%clk 0:00:26]} 31. Ke4 {[%clk 0:01:13]}  Bg7 {[%clk 0:00:25]} 32. Raa7 {[%clk 0:01:12]}  Bh8 {[%clk 0:00:25]} 33. Ra5 {[%clk 0:01:09]}  Bf6 {[%clk 0:00:24]} 34. Rda7 {[%clk 0:01:07]}  Bd8 {[%clk 0:00:17]} 35. Ra8 {[%clk 0:01:06]}  Kf7 {[%clk 0:00:17]} 36. R5a7+ {[%clk 0:01:05]}  Kf6 {[%clk 0:00:16]} 37. Rd7 {[%clk 0:01:03]} 1-0


[Site "https://www.chess.com"]

[Event "Titled Tuesday Blitz September 27 Early 2022"]
[White "Malyi, Viacheslav"]
[Black "Babazada, Khazar"]
[WhiteFideId "14123983"]
[BlackFideId "13413554"]
[WhiteElo "2190"]
[BlackElo "2409"]
[Result "0-1"]
[Round "06"]
[TimeControl "180+1"]
[Date "2022.09.27"]
[WhiteClock "0:00:22"]
[BlackClock "0:01:53"]

1. e4 {[%clk 0:03:00]}  e6 {[%clk 0:02:57]} 2. Nf3 {[%clk 0:02:59]}  d5 {[%clk 0:02:56]} 3. e5 {[%clk 0:02:59]}  c5 {[%clk 0:02:55]} 4. b4 {[%clk 0:03:00]}  cxb4 {[%clk 0:02:52]} 5. a3 {[%clk 0:03:00]}  bxa3 {[%clk 0:02:52]} 6. c3 {[%clk 0:03:00]}  Nc6 {[%clk 0:02:52]} 7. d4 {[%clk 0:03:01]}  Bd7 {[%clk 0:02:51]} 8. Bd3 {[%clk 0:03:01]}  Nge7 {[%clk 0:02:48]} 9. Ng5 {[%clk 0:02:56]}  Nf5 {[%clk 0:02:46]} 10. Nxa3 {[%clk 0:02:34]}  Be7 {[%clk 0:02:45]} 11. h4 {[%clk 0:02:31]}  Nxh4 {[%clk 0:02:41]} 12. Qh5 {[%clk 0:02:14]}  Ng6 {[%clk 0:02:06]} 13. Nxh7 {[%clk 0:02:13]}  Nf8 {[%clk 0:02:05]} 14. Nf6+ {[%clk 0:02:05]}  gxf6 {[%clk 0:02:05]} 15. Qxh8 {[%clk 0:02:04]}  fxe5 {[%clk 0:02:06]} 16. Rh7 {[%clk 0:01:15]}  Qa5 {[%clk 0:02:00]} 17. Bb2 {[%clk 0:00:50]}  Qb6 {[%clk 0:02:00]} 18. Nb5 {[%clk 0:00:46]}  a6 {[%clk 0:01:56]} 19. Qg8 {[%clk 0:00:38]}  O-O-O {[%clk 0:01:56]} 20. Rxf7 {[%clk 0:00:31]}  exd4 {[%clk 0:01:56]} 21. Rxe7 {[%clk 0:00:27]}  Nxe7 {[%clk 0:01:54]} 22. Nd6+ {[%clk 0:00:24]}  Qxd6 {[%clk 0:01:54]} 23. Ba3 {[%clk 0:00:22]}  Qxa3 {[%clk 0:01:53]} 0-1


[Site "https://www.chess.com"]

[Event "Titled Tuesday Blitz September 27 Early 2022"]
[White "Martin Carmona, Gaston Manuel"]
[Black "Ciuffoletti, Paolo"]
[WhiteFideId "22284567"]
[BlackFideId "807630"]
[WhiteElo "2162"]
[BlackElo "2143"]
[Result "1-0"]
[Round "06"]
[TimeControl "180+1"]
[Date "2022.09.27"]
[WhiteClock "0:00:44"]
[BlackClock "0:00:04"]

1. d4 {[%clk 0:02:51]}  d5 {[%clk 0:02:59]} 2. c4 {[%clk 0:02:45]}  c6 {[%clk 0:02:58]} 3. Nc3 {[%clk 0:02:44]}  Nf6 {[%clk 0:02:58]} 4. Nf3 {[%clk 0:02:44]}  dxc4 {[%clk 0:02:59]} 5. a4 {[%clk 0:02:43]}  e6 {[%clk 0:02:58]} 6. e3 {[%clk 0:02:42]}  c5 {[%clk 0:02:58]} 7. Bxc4 {[%clk 0:02:42]}  Nc6 {[%clk 0:02:58]} 8. O-O {[%clk 0:02:39]}  cxd4 {[%clk 0:02:58]} 9. exd4 {[%clk 0:02:39]}  Be7 {[%clk 0:02:58]} 10. Qe2 {[%clk 0:02:21]}  O-O {[%clk 0:02:57]} 11. Rd1 {[%clk 0:02:20]}  Nb4 {[%clk 0:02:54]} 12. Bg5 {[%clk 0:02:17]}  Nfd5 {[%clk 0:02:38]} 13. Bxe7 {[%clk 0:02:12]}  Nxe7 {[%clk 0:02:35]} 14. Ne5 {[%clk 0:02:10]}  Ned5 {[%clk 0:02:14]} 15. Rac1 {[%clk 0:02:09]}  Bd7 {[%clk 0:02:08]} 16. Nxd5 {[%clk 0:02:07]}  Nxd5 {[%clk 0:02:04]} 17. Bxd5 {[%clk 0:01:55]}  exd5 {[%clk 0:02:03]} 18. b3 {[%clk 0:01:56]}  Be6 {[%clk 0:01:59]} 19. Rc3 {[%clk 0:01:55]}  Qa5 {[%clk 0:01:55]} 20. Rg3 {[%clk 0:01:54]}  Rac8 {[%clk 0:01:45]} 21. h4 {[%clk 0:01:51]}  Rc3 {[%clk 0:01:31]} 22. Rdd3 {[%clk 0:01:49]}  Rxd3 {[%clk 0:01:26]} 23. Qxd3 {[%clk 0:01:47]}  Rc8 {[%clk 0:01:24]} 24. Qe3 {[%clk 0:01:41]}  Rc2 {[%clk 0:00:56]} 25. Qg5 {[%clk 0:01:35]}  g6 {[%clk 0:00:53]} 26. Re3 {[%clk 0:01:13]}  Qd2 {[%clk 0:00:48]} 27. Qd8+ {[%clk 0:01:01]}  Kg7 {[%clk 0:00:46]} 28. Rf3 {[%clk 0:01:02]}  Rc1+ {[%clk 0:00:37]} 29. Kh2 {[%clk 0:01:01]}  Qxd4 {[%clk 0:00:25]} 30. Qf6+ {[%clk 0:01:01]}  Kg8 {[%clk 0:00:24]} 31. h5 {[%clk 0:01:00]}  Qd1 {[%clk 0:00:07]} 32. Qd8+ {[%clk 0:00:58]}  Kg7 {[%clk 0:00:06]} 33. Qf6+ {[%clk 0:00:59]}  Kg8 {[%clk 0:00:06]} 34. Qd8+ {[%clk 0:00:55]}  Kg7 {[%clk 0:00:06]} 35. h6+ {[%clk 0:00:56]}  Kxh6 {[%clk 0:00:06]} 36. Qf8+ {[%clk 0:00:55]}  Kg5 {[%clk 0:00:05]} 37. Rg3+ {[%clk 0:00:51]}  Kf5 {[%clk 0:00:04]} 38. Rf3+ {[%clk 0:00:44]}  Kxe5 {[%clk 0:00:04]} 39. Qb8+ {[%clk 0:00:44]}  Ke4 {[%clk 0:00:04]} 40. Qf4# {[%clk 0:00:44]} 1-0


[Site "https://www.chess.com"]

[Event "Titled Tuesday Blitz September 27 Early 2022"]
[White "Matveeva, Olga"]
[Black "Namitbir Singh Walia"]
[WhiteFideId "24107018"]
[BlackFideId "35071068"]
[WhiteElo "2056"]
[BlackElo "1664"]
[Result "1-0"]
[Round "06"]
[TimeControl "180+1"]
[Date "2022.09.27"]
[WhiteClock "0:00:06"]
[BlackClock "0:00:02"]

1. d4 {[%clk 0:03:00]}  d5 {[%clk 0:01:59]} 2. c4 {[%clk 0:02:58]}  c6 {[%clk 0:01:57]} 3. Nf3 {[%clk 0:02:57]}  Nf6 {[%clk 0:01:56]} 4. e3 {[%clk 0:02:58]}  e6 {[%clk 0:01:54]} 5. b3 {[%clk 0:02:57]}  Nbd7 {[%clk 0:01:50]} 6. Bd3 {[%clk 0:02:55]}  Bd6 {[%clk 0:01:50]} 7. Bb2 {[%clk 0:02:53]}  O-O {[%clk 0:01:50]} 8. O-O {[%clk 0:02:53]}  Re8 {[%clk 0:01:49]} 9. Ne5 {[%clk 0:02:40]}  Qc7 {[%clk 0:01:35]} 10. f4 {[%clk 0:02:32]}  b6 {[%clk 0:01:35]} 11. Nd2 {[%clk 0:02:29]}  Bb7 {[%clk 0:01:34]} 12. Rc1 {[%clk 0:02:27]}  c5 {[%clk 0:01:31]} 13. cxd5 {[%clk 0:02:21]}  Nxd5 {[%clk 0:01:31]} 14. Bxh7+ {[%clk 0:02:14]}  Kf8 {[%clk 0:01:03]} 15. Qe2 {[%clk 0:01:22]}  N7f6 {[%clk 0:00:55]} 16. Bd3 {[%clk 0:01:19]}  Nb4 {[%clk 0:00:54]} 17. Bb5 {[%clk 0:01:13]}  Red8 {[%clk 0:00:47]} 18. a3 {[%clk 0:01:12]}  Nc6 {[%clk 0:00:41]} 19. dxc5 {[%clk 0:01:00]}  bxc5 {[%clk 0:00:19]} 20. Ndc4 {[%clk 0:00:56]}  a6 {[%clk 0:00:13]} 21. Bxc6 {[%clk 0:00:53]}  Bxc6 {[%clk 0:00:13]} 22. Nxc6 {[%clk 0:00:53]}  Qxc6 {[%clk 0:00:13]} 23. Bxf6 {[%clk 0:00:43]}  gxf6 {[%clk 0:00:13]} 24. Qh5 {[%clk 0:00:43]}  Bc7 {[%clk 0:00:11]} 25. e4 {[%clk 0:00:35]}  Qxe4 {[%clk 0:00:08]} 26. Qxc5+ {[%clk 0:00:34]}  Kg7 {[%clk 0:00:08]} 27. Qxc7 {[%clk 0:00:31]}  Rac8 {[%clk 0:00:08]} 28. Qb6 {[%clk 0:00:30]}  Rd3 {[%clk 0:00:08]} 29. Kh1 {[%clk 0:00:24]}  Rcd8 {[%clk 0:00:06]} 30. Rb1 {[%clk 0:00:21]}  Qe2 {[%clk 0:00:06]} 31. Qf2 {[%clk 0:00:16]}  Qh5 {[%clk 0:00:06]} 32. Ne3 {[%clk 0:00:11]}  Rc3 {[%clk 0:00:05]} 33. Nc4 {[%clk 0:00:11]}  Rdd3 {[%clk 0:00:05]} 34. f5 {[%clk 0:00:10]}  e5 {[%clk 0:00:04]} 35. Na5 {[%clk 0:00:08]}  Qg5 {[%clk 0:00:03]} 36. Rbd1 {[%clk 0:00:07]}  Rxd1 {[%clk 0:00:01]} 37. Rxd1 {[%clk 0:00:08]}  Rc1 {[%clk 0:00:02]} 38. Qf1 {[%clk 0:00:07]}  Rc2 {[%clk 0:00:02]} 39. h3 {[%clk 0:00:07]}  Qg3 {[%clk 0:00:02]} 40. b4 {[%clk 0:00:06]} 1-0


[Site "https://www.chess.com"]

[Event "Titled Tuesday Blitz September 27 Early 2022"]
[White "Maung, Maung Kyaw Zaw Hein"]
[Black "Gabdrakhmanov, Azat"]
[WhiteFideId "13001698"]
[BlackFideId "34189197"]
[WhiteElo "1785"]
[BlackElo "2233"]
[Result "1/2-1/2"]
[Round "06"]
[TimeControl "180+1"]
[Date "2022.09.27"]
[WhiteClock "0:00:10"]
[BlackClock "0:00:13"]

1. Nf3 {[%clk 0:03:00]}  c5 {[%clk 0:03:00]} 2. c4 {[%clk 0:03:00]}  Nf6 {[%clk 0:02:59]} 3. Nc3 {[%clk 0:03:00]}  e6 {[%clk 0:02:59]} 4. d4 {[%clk 0:02:58]}  cxd4 {[%clk 0:02:58]} 5. Nxd4 {[%clk 0:02:59]}  Be7 {[%clk 0:02:59]} 6. g3 {[%clk 0:02:59]}  d6 {[%clk 0:02:58]} 7. Bg2 {[%clk 0:02:59]}  a6 {[%clk 0:02:58]} 8. O-O {[%clk 0:03:00]}  Qc7 {[%clk 0:02:59]} 9. b3 {[%clk 0:02:54]}  Bd7 {[%clk 0:02:58]} 10. Bb2 {[%clk 0:02:53]}  Nc6 {[%clk 0:02:58]} 11. h3 {[%clk 0:02:47]}  O-O-O {[%clk 0:02:57]} 12. Rc1 {[%clk 0:02:46]}  Nxd4 {[%clk 0:02:56]} 13. Qxd4 {[%clk 0:02:45]}  Kb8 {[%clk 0:02:56]} 14. Rfd1 {[%clk 0:02:39]}  Qc5 {[%clk 0:02:45]} 15. Qxc5 {[%clk 0:02:31]}  dxc5 {[%clk 0:02:45]} 16. Ne4 {[%clk 0:02:32]}  Nxe4 {[%clk 0:02:33]} 17. Bxe4 {[%clk 0:02:33]}  f6 {[%clk 0:02:33]} 18. Rd2 {[%clk 0:02:22]}  e5 {[%clk 0:02:31]} 19. Kh2 {[%clk 0:02:04]}  Kc7 {[%clk 0:02:26]} 20. Rcd1 {[%clk 0:02:02]}  Bc8 {[%clk 0:02:23]} 21. Rd5 {[%clk 0:01:41]}  h6 {[%clk 0:02:13]} 22. Ba3 {[%clk 0:01:40]}  b6 {[%clk 0:02:06]} 23. Bb2 {[%clk 0:01:37]}  Be6 {[%clk 0:01:45]} 24. R5d2 {[%clk 0:01:34]}  Rxd2 {[%clk 0:01:30]} 25. Rxd2 {[%clk 0:01:33]}  b5 {[%clk 0:01:27]} 26. Bd5 {[%clk 0:01:30]}  Bf5 {[%clk 0:01:11]} 27. e4 {[%clk 0:01:27]}  Bd7 {[%clk 0:01:08]} 28. f4 {[%clk 0:01:17]}  exf4 {[%clk 0:00:50]} 29. gxf4 {[%clk 0:01:17]}  Re8 {[%clk 0:00:50]} 30. e5 {[%clk 0:00:59]}  bxc4 {[%clk 0:00:46]} 31. Bxc4 {[%clk 0:00:53]}  Bb5 {[%clk 0:00:45]} 32. Kg3 {[%clk 0:00:39]}  Bxc4 {[%clk 0:00:39]} 33. bxc4 {[%clk 0:00:39]}  Kc6 {[%clk 0:00:35]} 34. Kg4 {[%clk 0:00:34]}  Rf8 {[%clk 0:00:24]} 35. h4 {[%clk 0:00:21]}  g6 {[%clk 0:00:13]} 36. Re2 {[%clk 0:00:14]}  f5+ {[%clk 0:00:13]} 37. Kg3 {[%clk 0:00:14]}  Rb8 {[%clk 0:00:12]} 38. e6 {[%clk 0:00:12]}  Rb4 {[%clk 0:00:12]} 39. Bg7 {[%clk 0:00:12]}  Rxc4 {[%clk 0:00:09]} 40. Bxh6 {[%clk 0:00:12]}  Re4 {[%clk 0:00:09]} 41. Rxe4 {[%clk 0:00:06]}  fxe4 {[%clk 0:00:10]} 42. h5 {[%clk 0:00:05]}  gxh5 {[%clk 0:00:09]} 43. f5 {[%clk 0:00:06]}  Kd5 {[%clk 0:00:08]} 44. Bg7 {[%clk 0:00:02]}  h4+ {[%clk 0:00:07]} 45. Kh3 {[%clk 0:00:02]}  e3 {[%clk 0:00:07]} 46. f6 {[%clk 0:00:03]}  Bxf6 {[%clk 0:00:03]} 47. Bxf6 {[%clk 0:00:04]}  Kxe6 {[%clk 0:00:04]} 48. Bxh4 {[%clk 0:00:04]}  Kd5 {[%clk 0:00:04]} 49. Kg2 {[%clk 0:00:05]}  Kd4 {[%clk 0:00:04]} 50. Kf3 {[%clk 0:00:06]}  Kd3 {[%clk 0:00:05]} 51. Be1 {[%clk 0:00:06]}  c4 {[%clk 0:00:04]} 52. a4 {[%clk 0:00:05]}  e2 {[%clk 0:00:05]} 53. a5 {[%clk 0:00:05]}  c3 {[%clk 0:00:05]} 54. Bxc3 {[%clk 0:00:06]}  Kxc3 {[%clk 0:00:06]} 55. Kxe2 {[%clk 0:00:06]}  Kb4 {[%clk 0:00:06]} 56. Kd1 {[%clk 0:00:07]}  Kxa5 {[%clk 0:00:07]} 57. Kc2 {[%clk 0:00:08]}  Kb4 {[%clk 0:00:08]} 58. Kb2 {[%clk 0:00:09]}  a5 {[%clk 0:00:08]} 59. Ka2 {[%clk 0:00:10]}  a4 {[%clk 0:00:09]} 60. Ka1 {[%clk 0:00:10]}  a3 {[%clk 0:00:10]} 61. Ka2 {[%clk 0:00:08]}  Ka4 {[%clk 0:00:11]} 62. Ka1 {[%clk 0:00:09]}  Kb3 {[%clk 0:00:12]} 63. Kb1 {[%clk 0:00:10]}  a2+ {[%clk 0:00:13]} 64. Ka1 {[%clk 0:00:10]}  Ka3 {[%clk 0:00:13]} 1/2-1/2


[Site "https://www.chess.com"]

[Event "Titled Tuesday Blitz September 27 Early 2022"]
[White "Milikow, Yoav"]
[Black "Makhnev, Denis"]
[WhiteFideId "2822237"]
[BlackFideId "13707647"]
[WhiteElo "2341"]
[BlackElo "2486"]
[Result "1/2-1/2"]
[Round "06"]
[TimeControl "180+1"]
[Date "2022.09.27"]
[WhiteClock "0:01:31"]
[BlackClock "0:02:38"]

1. d4 {[%clk 0:03:00]}  d5 {[%clk 0:02:58]} 2. c4 {[%clk 0:02:58]}  dxc4 {[%clk 0:02:58]} 3. Nf3 {[%clk 0:02:57]}  Nf6 {[%clk 0:02:58]} 4. e3 {[%clk 0:02:57]}  e6 {[%clk 0:02:59]} 5. Bxc4 {[%clk 0:02:57]}  c5 {[%clk 0:03:00]} 6. O-O {[%clk 0:02:57]}  a6 {[%clk 0:03:00]} 7. b3 {[%clk 0:02:51]}  b6 {[%clk 0:03:00]} 8. dxc5 {[%clk 0:02:42]}  Bxc5 {[%clk 0:03:01]} 9. Bb2 {[%clk 0:02:40]}  Bb7 {[%clk 0:02:58]} 10. Nbd2 {[%clk 0:02:36]}  Nbd7 {[%clk 0:02:57]} 11. a3 {[%clk 0:02:34]}  Qe7 {[%clk 0:02:50]} 12. Qe2 {[%clk 0:02:27]}  O-O {[%clk 0:02:49]} 13. Rfd1 {[%clk 0:02:25]}  Rac8 {[%clk 0:02:47]} 14. Bxa6 {[%clk 0:02:02]}  Bxa6 {[%clk 0:02:47]} 15. Qxa6 {[%clk 0:02:03]}  Ra8 {[%clk 0:02:48]} 16. Qb5 {[%clk 0:02:00]}  Bxa3 {[%clk 0:02:47]} 17. Bxa3 {[%clk 0:01:45]}  Rxa3 {[%clk 0:02:48]} 18. Rxa3 {[%clk 0:01:45]}  Qxa3 {[%clk 0:02:48]} 19. Nc4 {[%clk 0:01:46]}  Qc5 {[%clk 0:02:38]} 20. Nd4 {[%clk 0:01:31]} 1/2-1/2


[Site "https://www.chess.com"]